[Event "57th Biel Festival MTO 2024"]
[White "Bilguun,Sumiya"]
[Black "Dotzer,Lukas"]
[Site "Biel"]
[Round "5.16"]
[Annotator "TA"]
[Result "1/2-1/2"]
[Date "2024.07.19"]
[WhiteElo "2466"]
[BlackElo "2369"]
[PlyCount "54"]
[TimeControl "60"]

{[%evp 11,54,-14,0,-2,0,0,0,0,0,0,7,0,-10,-27,5,0,0,0,6,-12,0,0,0,0,0,0,0,0,0,0,0,0,0,0,0,-8,0,0,0,0,0,0,0,0,0]} 1. e4 {[%emt 0:2:5]} c5 {[%emt 0:0:4]} 2. Nc3 {[%emt 0:0:23]} e6 {[%emt 0:0:5]} 3. f4 {[%emt 0:2:19]} d5 {[%emt 0:0:22]} 4. Nf3 {[%emt 0:0:16]} dxe4 {[%emt 0:0:55]} 5. Nxe4 {[%emt 0:0:16]} Nc6 {[%emt 0:0:57]} 6. Bb5 {[%emt 0:0:24]} Bd7 {[%emt 0:0:35]} 7. Qe2 {[%emt 0:0:14][%cal Of4f5]} Nf6 {[%emt 0:0:38]} 8. f5 {[%emt 0:1:1]} Be7 {[%emt 0:16:38]} 9. fxe6 {[%emt 0:4:29]} Bxe6 {[%emt 0:1:27]} 10. Nfg5 {[%emt 0:6:42] Strongly threatening Nxe6.} Nxe4 {[%emt 0:17:11]} 11. Nxe6 {[%emt 0:1:54]} fxe6 {[%emt 0:0:17]} 12. Qxe4 {[%emt 0:2:9]} Qd5 {[%emt 0:3:28]} (12... O-O {feels hotter.} 13. Bxc6 bxc6 14. d3 Rb8 )13. Qxd5 {[%emt 0:20:19] The position is equal.} (13. d3 {with more complications.} O-O 14. Bxc6 bxc6 15. Be3 )exd5 {[%emt 0:0:7]} 14. O-O {[%emt 0:0:46]} O-O-O {[%emt 0:12:4]} 15. c3 {[%emt 0:22:57] Repels Nd4. White is weak on the dark squares} d4 {[%emt 0:3:7]} 16. b3 {[%emt 0:20:12]} dxc3 {[%emt 0:23:48]} 17. dxc3 {[%emt 0:0:17]} Bf6 {[%emt 0:0:21]} 18. Be3 {[%emt 0:6:23][%cal Ob5c6]} Bxc3 {[%emt 0:2:20]} 19. Rac1 {[%emt 0:0:24]} Bd4 {[%emt 0:4:15]} 20. Bxd4 {[%emt 0:0:35]} cxd4 {[%emt 0:0:18]} 21. Bxc6 {[%emt 0:4:1]} bxc6 $11 {[%emt 0:0:5][%mdl 4096] Endgame. KRR-KRR} 22. Rf7 {[%emt 0:0:22]} d3 {[%emt 0:2:13]} 23. Rxc6+ {[%emt 0:2:46]} Kb8 {[%emt 0:0:6] [#] ...d2 would now be deadly.} 24. Rcc7 {[%emt 0:0:9]} (24. Rxg7 d2 25. Rf7 d1=Q+ (25... d1=R+ $2 26. Kf2 $19 )26. Kf2 Rhg8 (26... Rd2+ 27. Kg3 Rg8+ 28. Rg7 Rxg7+ 29. Kf4 Qg4+ 30. Ke5 Re2+ 31. Kd5 Rg5+ 32. Kd6 Qe6# )(26... Rd2+ 27. Kg3 Rg8+ 28. Rg7 Rxg7+ 29. Kf4 Qg4+ 30. Ke5 Re2+ 31. Kd5 Rg5+ 32. Kd6 Qe6# ))d2 {[%emt 0:0:18]} 25. Rb7+ {[%emt 0:0:8]} (25. Rxg7 d1=Q+ (25... d1=R+ $2 26. Kf2 $19 )26. Kf2 Qd2+ 27. Kg3 Rd3+ (27... Qxa2 $2 28. Rb7+ Ka8 29. Rxa7+ Qxa7 30. Rxa7+ Kxa7 31. Kf4 $19 )28. Kg4 Rd4+ (28... Qxa2 29. Rcd7 Qxg2+ 30. Kf5 Qf3+ 31. Ke5 Qe2+ 32. Kf5 Rf3+ 33. Kg5 Qg2+ 34. Kh6 Rh3# )29. Kh5 Qe2+ (29... Qxa2 30. Rce7 Qa5+ 31. Rg5 Qb4 32. g4 Qxe7 33. h3 Rd3 34. Rb5+ Ka8 35. Rb8+ Kxb8 36. g5 Qf7+ 37. Kh4 Qf4+ 38. Kh5 Rxh3# )30. Kh6 Qe6+ (30... Qxa2 31. Rb7+ Kc8 32. Rbc7+ Kd8 33. h4 Qd2+ 34. Kh5 Qe2+ 35. Kh6 Rxh4+ 36. Kg5 Qg4+ 37. Kf6 Qd4+ 38. Ke6 Re4+ 39. Kf7 Qf2# )31. Kg5 Qe5+ 32. Kh6 Rh4# )Ka8 {[%emt 0:0:6]} 26. Rxa7+ {[%emt 0:0:4]} Kb8 {[%emt 0:0:7]} 27. Rab7+ {[%emt 0:0:7]} (27. Rxg7 {leads to mate.} d1=Q+ (27... d1=B 28. Rgb7+ Kc8 29. Rxh7 $14 )28. Kf2 Qd2+ 29. Kg3 Rd3+ 30. Kg4 Rd4+ (30... Qxg2+ {gets mated.} 31. Kf5 Qd5+ 32. Kf6 Rf3+ 33. Ke7 Re3+ 34. Kf6 Rf8+ 35. Rgf7 Qe5# )31. Kh5 Qe2+ (31... Rd5+ 32. Kg4 Qxg2+ 33. Kf4 Rd4+ 34. Ke5 Qe4+ 35. Kf6 Qf4+ 36. Ke7 Qe5+ 37. Kf7 Rf4# )32. Kh6 Qe6+ 33. Kh5 Qe5+ 34. Rg5 Qxh2# )Ka8 {[%emt 0:0:7] Not much happened in this game.   Weighted Error Value: White=0.02 (flawless) /Black=0.04 (flawless) .  Inaccurate:     	---       	Black=1      OK:         	White=15    	Black=7      Best:        	---       	Black=2} 1/2-1/2

[Event "57th Biel Festival MTO 2024"]
[White "Thavandiran,Shiyam"]
[Black "Ansat,Aldiyar"]
[Site "Biel"]
[Round "5.17"]
[Annotator "TA"]
[Result "0-1"]
[Date "2024.07.19"]
[WhiteElo "2387"]
[BlackElo "2437"]
[PlyCount "46"]
[TimeControl "60"]

{[%evp 13,46,19,23,4,44,10,21,0,0,-38,-44,-38,-43,-100,-95,-98,-100,-167,-175,-195,-148,-186,-156,-200,-201,-539,-514,-564,-556,-578,-518,-1110,-1100,-1314,-1300]} 1. e4 {[%emt 0:7:5]} c5 {[%emt 0:0:7]} 2. Nf3 {[%emt 0:0:17]} d6 {[%emt 0:0:7]} 3. d4 {[%emt 0:3:19]} cxd4 {[%emt 0:0:7]} 4. Nxd4 {[%emt 0:0:9]} Nf6 {[%emt 0:0:5]} 5. Nc3 {[%emt 0:0:6]} Nc6 {[%emt 0:0:7]} 6. Bg5 {[%emt 0:0:24]} e6 {[%emt 0:0:6]} 7. Bb5 {[%emt 0:2:20]} Bd7 {[%emt 0:4:45]} 8. Qd3 {[%emt 0:2:44]} Qb6 {[%emt 0:20:43]} 9. Bxc6 {[%emt 0:14:29]} bxc6 {[%emt 0:1:17]} 10. O-O {[%emt 0:15:54] The position is equal.} Be7 {[%emt 0:12:37]} 11. e5 {[%emt 0:10:14]} dxe5 {[%emt 0:0:49]} 12. Nf3 {[%emt 0:0:50]} Bc8 {[%emt 0:6:42] [#] ...Ba6 would now be deadly.} (12... Qxb2 13. Nxe5 Rd8 14. Rab1 $18 )13. Bxf6 {[%emt 0:15:13]} (13. Qd2 $15 )gxf6 $17 {[%emt 0:7:37]} 14. Rfd1 {[%emt 0:16:56]} O-O {[%emt 0:6:0][%cal Of8d8]} (14... Qxb2 $6 15. Rab1 Qa3 16. Rb3 $11 )15. Qe4 {[%emt 0:6:18]} (15. Qc4 $17 )Qxb2 $19 {[%emt 0:18:13]} 16. Qe3 {[%emt 0:3:5]} Qxc2 {[%emt 0:1:39]} (16... Qb6 $19 17. Qh6 Qb4 )17. Ne4 $17 {[%emt 0:1:17]} Kh8 {[%emt 0:3:27]} 18. Rac1 {[%emt 0:2:7]} Qa4 {[%emt 0:0:3]} (18... Qxa2 $2 19. Qh6 (19. Rxc6 $2 Qa4 $19 )Rg8 20. Nxf6 $18 )19. Nd4 $2 {[%emt 0:2:1] [#]} (19. Nfd2 f5 (19... Qxa2 $2 {perishes.} 20. Qh6 $18 )20. Nc5 )exd4 $19 {[%emt 0:5:26] Black is clearly winning.} 20. Rxd4 {[%emt 0:4:36]} Qb5 {[%emt 0:0:16]} 21. Nc5 {[%emt 0:1:4]} Bxc5 {[%emt 0:2:43]} 22. Qh6 {[%emt 0:0:19]} (22. Rxc5 $142 Qb1+ (22... Qxc5 $2 23. Qh6 $19 )23. Rc1 )Be7 {[%emt 0:0:3]} 23. h4 {[%emt 0:0:42]} Rg8 {[%emt 0:0:17] White got outplayed after the opening.   Weighted Error Value: White=0.97/Black=0.14 (very precise) .  Mistake:       	White=4     	Black=1      Inaccurate:     	White=2     	Black=1      OK:         	White=3     	Black=4      Best:        	White=1     	Black=3} 0-1

[Event "57th Biel Festival MTO 2024"]
[White "Deuer,Marius"]
[Black "Haimovich,Tal"]
[Site "Biel"]
[Round "5.18"]
[Annotator "TA"]
[Result "0-1"]
[Date "2024.07.19"]
[WhiteElo "2435"]
[BlackElo "2330"]
[PlyCount "56"]
[TimeControl "60"]

{[%evp 13,56,12,15,14,21,21,16,18,13,4,38,13,41,19,34,27,26,20,35,32,29,43,39,0,0,0,1,-12,0,0,0,0,0,0,0,0,0,0,13,10,20,16,28,-29968,-12291]} 1. d4 {[%emt 0:0:2]} d5 {[%emt 0:0:8]} 2. c4 {[%emt 0:0:4]} e6 {[%emt 0:0:5]} 3. Nc3 {[%emt 0:0:5]} Be7 {[%emt 0:0:5]} 4. cxd5 {[%emt 0:0:15]} exd5 {[%emt 0:0:6]} 5. Bf4 {[%emt 0:0:4]} c6 {[%emt 0:0:6]} 6. e3 {[%emt 0:0:6]} Bf5 {[%emt 0:0:22]} 7. Nge2 {[%emt 0:0:10]} Nf6 {[%emt 0:4:31]} 8. Ng3 {[%emt 0:0:13]} Bg6 {[%emt 0:0:7]} 9. h4 {[%emt 0:0:16]} h5 {[%emt 0:1:2]} 10. Bd3 {[%emt 0:0:29] The position is equal.} Bxd3 {[%emt 0:2:47]} 11. Qxd3 {[%emt 0:0:6]} g6 {[%emt 0:1:16]} 12. O-O-O {[%emt 0:16:16]} Na6 {[%emt 0:15:6]} 13. f3 {[%emt 0:14:25]} Qa5 {[%emt 0:3:55]} 14. Kb1 {[%emt 0:5:24]} O-O-O {[%emt 0:3:4]} 15. e4 {[%emt 0:4:39]} dxe4 {[%emt 0:20:35]} 16. fxe4 {[%emt 0:2:0]} Ng4 {[%emt 0:2:57]} 17. Qf3 {[%emt 0:7:34] Inhibits Nf2.} Rd7 {[%emt 0:0:56]} 18. d5 {[%emt 0:10:47] [#] Strongly threatening dxc6.} Rhd8 {[%emt 0:2:14]} 19. Rc1 {[%emt 0:1:11]} Bf6 {[%emt 0:7:25]} 20. dxc6 {[%emt 0:18:56]} Rd3 {[%emt 0:2:19]} (20... bxc6 {feels hotter.} 21. Nd5 Ne5 22. Qc3 Qxc3 23. Rxc3 Bg7 )21. cxb7+ {[%emt 0:1:2]} Kxb7 {[%emt 0:0:6]} 22. Qe2 {[%emt 0:0:4]} Bxc3 {[%emt 0:2:25]} 23. Rxc3 {[%emt 0:4:36]} Rxc3 {[%emt 0:2:30]} 24. bxc3 {[%emt 0:1:20]} Nc5 $36 {[%emt 0:2:21][%cal Oc5d3][%mdl 2048] aiming for ...Nd3! Black is more active.} 25. Qc4 {[%emt 0:2:23][%cal Ob1a1] Hoping for Ka1!} Nf2 {[%emt 0:15:51] A dynamic duo of knights.} 26. Rf1 {[%emt 0:0:48]} Nfd3 {[%emt 0:5:47] ( -> ...Qb6+)} 27. Kc2 {[%emt 0:3:27]} (27. Qxf7+ $2 Rd7 $19 )Ka8 {[%emt 0:2:35] Chess con chili.} 28. Be3 {[%emt 0:2:33][%mdl 8192] [#]} (28. Qxf7 Qa4+ 29. Kd2 Nxf4+ (29... Ne5+ $2 30. Qd5+ Rxd5+ 31. exd5 $19 )30. Kc1 Nfd3+ (30... Nxg2 {gets mated.} 31. Nf5 gxf5 32. Rg1 Qa3+ 33. Kb1 Rb8+ 34. Qb3 Nxb3 35. axb3 Qxb3+ 36. Kc1 Qb2+ 37. Kd1 Rd8# )31. Kd2 Ne5+ (31... Nxe4+ $2 32. Nxe4 Ne5+ 33. Kc1 $19 )32. Ke3 Nxf7 33. Rxf7 Qxa2 (33... Rd3+ {leads to mate.} 34. Kf4 Qxa2 35. Rf8+ Kb7 36. Kg5 Ne6+ 37. Kf6 Nxf8 38. Kg5 Qxg2 39. Kf6 Qxg3 40. Kg7 Qc7+ 41. Kh6 Rg3 42. e5 Qh7# )34. Rf2 Rd3+ 35. Kf4 Qxf2+ 36. Kg5 Ne6+ (36... Qxg3+ 37. Kh6 Nxe4 38. c4 Rd7 39. c5 Nf6 40. c6 Rh7# )37. Kh6 Qf8+ (37... Rxg3 $2 38. c4 Qf8+ 39. Kh7 Qg7# )38. Kxg6 Rxg3+ 39. Kxh5 Qh8# )(28. Ne2 $11 )Ne5 $1 {[%emt 0:0:36] Weighted Error Value: White=0.36/Black=0.06 (flawless) .  Loses game:     	White=1     	---        Inaccurate:     	White=1     	Black=2      OK:         	White=8     	Black=6      Best:        	White=1     	Black=2      Strong:       	---       	Black=1} 0-1

[Event "57th Biel Festival MTO 2024"]
[White "Rosen,Eric"]
[Black "Fromm,Marius"]
[Site "Biel"]
[Round "5.19"]
[Annotator "TA"]
[Result "1/2-1/2"]
[Date "2024.07.19"]
[WhiteElo "2361"]
[BlackElo "2465"]
[PlyCount "72"]
[TimeControl "60"]

{[%evp 10,72,-10,-1,0,-6,-14,-17,20,6,3,-16,0,-9,36,-24,20,13,14,20,27,14,24,16,18,8,14,16,22,10,9,12,28,12,0,0,0,0,0,-3,-10,-14,-11,-16,-17,-16,-16,-16,-16,-16,-15,-16,-15,-16,-18,-22,-22,-15,-14,-14,-14,-14,-5,-14,-14]} 1. e4 {[%emt 0:0:9]} e6 {[%emt 0:1:18]} 2. d4 {[%emt 0:0:23]} d5 {[%emt 0:0:5]} 3. Bd3 {[%emt 0:0:9][%cal Bf1d3,Bd3e4,Be4f3][%mdl 32]} dxe4 {[%emt 0:1:5]} 4. Bxe4 {[%emt 0:0:6]} Nf6 {[%emt 0:0:5]} 5. Bf3 {[%emt 0:0:10]} c5 {[%emt 0:0:21]} 6. Ne2 {[%emt 0:0:27]} Be7 {[%emt 0:8:17]} 7. O-O {[%emt 0:4:28]} O-O {[%emt 0:2:28]} 8. Be3 {[%emt 0:6:50]} Nc6 {[%emt 0:7:20]} 9. dxc5 {[%emt 0:7:50]} Ne5 {[%emt 0:5:48]} 10. Nd2 {[%emt 0:5:57]} Qc7 {[%emt 0:7:55]} 11. b4 {[%emt 0:4:53]} a5 {[%emt 0:11:16]} 12. c3 {[%emt 0:3:17]} (12. a3 $14 )Rd8 {[%emt 0:1:8] [#] ...Nxf3+ would now be deadly.} 13. Nd4 {[%emt 0:3:42]} Nxf3+ {[%emt 0:4:9]} 14. Qxf3 {[%emt 0:5:35]} Nd5 {[%emt 0:2:24]} 15. a3 {[%emt 0:3:59]} axb4 {[%emt 0:19:13]} 16. cxb4 {[%emt 0:3:48]} e5 {[%emt 0:0:23]} 17. Nb5 {[%emt 0:2:32]} Qc6 {[%emt 0:0:15] [#]} 18. Nd6 {[%emt 0:1:29]} Bxd6 {[%emt 0:5:7]} 19. cxd6 {[%emt 0:0:14]} Qxd6 {[%emt 0:4:19]} 20. Nc4 {[%emt 0:3:3]} Qb8 {[%emt 0:2:20]} 21. Nb6 {[%emt 0:14:45]} Nxb6 {[%emt 0:0:8] The position is equal.} 22. Bxb6 {[%emt 0:0:5]} Rd6 {[%emt 0:0:5]} 23. Rfd1 {[%emt 0:3:7][%cal Oa1c1]} Bd7 {[%emt 0:3:8]} 24. Rxd6 {[%emt 0:4:46]} Qxd6 {[%emt 0:0:5]} 25. Rd1 {[%emt 0:1:53]} (25. Qxb7 $2 {too greedy.} Bc6 (25... Rxa3 26. Qa8+ Rxa8 27. Rxa8+ $11 )26. Qc7 Qg6 $19 )Qc6 {[%emt 0:0:26]} 26. Qxc6 {[%emt 0:0:49]} Bxc6 {[%emt 0:0:4]} 27. Rd8+ {[%emt 0:0:29]} Rxd8 {[%emt 0:0:35]} 28. Bxd8 $11 {[%emt 0:0:5][%mdl 4096] Endgame. KB-KB} f6 {[%emt 0:0:8]} 29. f3 {[%emt 0:1:40]} Kf7 {[%emt 0:0:7]} 30. Kf2 {[%emt 0:0:22]} Ke6 {[%emt 0:0:6]} 31. Ke3 {[%emt 0:0:24]} Kd5 {[%emt 0:0:11]} 32. g4 {[%emt 0:1:16]} Ke6 {[%emt 0:1:43]} 33. Bc7 {[%emt 0:4:4]} g5 {[%emt 0:0:26]} 34. Bd8 {[%emt 0:0:44]} Be8 {[%emt 0:0:7]} 35. Kf2 {[%emt 0:2:21]} h5 {[%emt 0:0:9]} 36. Kg3 {[%emt 0:4:37]} h4+ {[%emt 0:0:24] An interesting draw.   Weighted Error Value: White=0.07 (flawless) /Black=0.08 (flawless) .  Mistake:       	White=1     	---        Inaccurate:     	---       	Black=3      OK:         	White=9     	Black=13     Best:        	---       	Black=2      Brilliant:      	White=1     	---} 1/2-1/2

[Event "57th Biel Festival MTO 2024"]
[White "Saraci,Nderim"]
[Black "Toktomushev,Teimur"]
[Site "Biel"]
[Round "5.20"]
[Annotator "TA"]
[Result "1/2-1/2"]
[Date "2024.07.19"]
[WhiteElo "2449"]
[BlackElo "2300"]
[PlyCount "105"]
[TimeControl "60"]

{[%evp 58,105,-118,-118,-150,-358,-347,-346,-333,-385,-389,-374,-379,-418,-396,-1369,-1526,-1634,-1606,-5389,-1545,-1890,-1890,-1133,-112,-112,-158,-158,-161,-161,-145,-285,-41,-51,-47,-45,0,0,0,-8,-8,-289,0,0,0,0,0,0,0,-8]} 1. Nf3 {[%emt 0:0:6]} d5 {[%emt 0:9:57]} 2. g3 {[%emt 0:0:11]} Nf6 {[%emt 0:0:5]} 3. Bg2 {[%emt 0:0:7]} e6 {[%emt 0:0:6]} 4. O-O {[%emt 0:0:9]} Be7 {[%emt 0:0:4]} 5. d3 {[%emt 0:0:14]} O-O {[%emt 0:0:11]} 6. Nbd2 {[%emt 0:0:12]} c5 {[%emt 0:0:16]} 7. e4 {[%emt 0:0:10]} Nc6 {[%emt 0:0:6]} 8. Re1 {[%emt 0:0:9]} Qc7 {[%emt 0:1:32]} 9. e5 {[%emt 0:2:13]} Nd7 {[%emt 0:0:8]} 10. Qe2 {[%emt 0:0:8]} b5 {[%emt 0:0:36]} 11. h4 {[%emt 0:0:36]} a5 {[%emt 0:1:22]} 12. Nf1 {[%emt 0:3:15]} Ba6 {[%emt 0:4:0]} 13. Bf4 {[%emt 0:11:47]} Rfc8 {[%emt 0:2:26]} 14. Ne3 {[%emt 0:8:40]} Qd8 {[%emt 0:5:10]} 15. h5 {[%emt 0:16:35]} h6 {[%emt 0:1:3]} 16. g4 {[%emt 0:9:33]} b4 {[%emt 0:19:22]} 17. Qd2 {[%emt 0:7:15]} Nb6 {[%emt 0:10:9]} 18. Nf1 {[%emt 0:5:46]} c4 {[%emt 0:3:30]} 19. b3 {[%emt 0:7:29]} a4 {[%emt 0:15:31]} 20. g5 {[%emt 0:7:5]} hxg5 {[%emt 0:0:32]} 21. Bxg5 {[%emt 0:0:31]} cxd3 {[%emt 0:9:17]} 22. Qf4 {[%emt 0:4:4]} dxc2 {[%emt 0:17:41]} 23. h6 {[%emt 0:2:18]} Nd4 {[%emt 0:3:53]} 24. Bxe7 {[%emt 0:13:47]} Nxf3+ {[%emt 0:0:9]} 25. Bxf3 {[%emt 0:0:17]} Qxe7 {[%emt 0:0:4]} 26. hxg7 {[%emt 0:1:30]} Kxg7 {[%emt 0:0:27]} 27. Ng3 {[%emt 0:1:36]} Kf8 {[%emt 0:2:27]} 28. Kg2 {[%emt 0:2:33]} Ke8 {[%emt 0:0:39]} 29. Rh1 {[%emt 0:2:25]} Kd7 {[%emt 0:1:51]} 30. Rh7 {[%emt 0:0:54]} Rf8 {[%emt 0:0:16]} 31. Qd4 $2 {[%emt 0:0:59] [#]} (31. Rc1 $17 {was worth a try.} )axb3 $1 $19 {[%emt 0:1:58]} 32. axb3 {[%emt 0:0:49]} Bd3 $1 {[%emt 0:1:9]} 33. Rhh1 {[%emt 0:1:28]} Rxa1 {[%emt 0:0:30]} 34. Rxa1 {[%emt 0:1:31]} Rc8 $1 {[%emt 0:0:27]} 35. Rc1 {[%emt 0:1:1]} Qg5 {[%emt 0:0:21]} 36. Qxb6 $2 {[%emt 0:0:35]} (36. Rxc2 Rxc2 (36... Bxc2 $2 37. Qxb6 Qxe5 38. Qb5+ Kd8 39. Qxb4 $19 )37. Qxd3 )Qxc1 $19 {[%emt 0:0:14]} 37. Qd6+ {[%emt 0:0:26]} Ke8 {[%emt 0:0:4]} 38. Bh5 {[%emt 0:0:32]} Qh6 {[%emt 0:1:7]} (38... Qf4 39. Qxe6+ Kf8 (39... Kd8 40. Qd6+ Ke8 41. Qe6+ Kf8 42. Qxc8+ $17 )40. Qxc8+ $17 )39. Bxf7+ {[%emt 0:0:16]} Kxf7 {[%emt 0:0:5]} 40. Qd7+ {[%emt 0:0:4]} Kg6 $2 {[%emt 0:1:6]} (40... Kg8 $19 41. Qxc8+ Kh7 )41. Qxe6+ $17 {[%emt 0:1:42]} Kg7 {[%emt 0:5:44]} (41... Kh7 $142 42. Qd7+ Kg8 (42... Qg7 43. Qh3+ Kg8 44. Qxc8+ Qf8 45. Qg4+ Kh8 46. Qh4+ Bh7 47. Ne2 $17 )43. Qxc8+ Qf8 44. Qg4+ Kh8 45. Qh3+ Bh7 )42. Qd7+ $17 {[%emt 0:0:7]} Kg8 {[%emt 0:13:9]} (42... Kg6 43. Qd6+ Kh7 (43... Kg7 44. Qd7+ Kg8 45. Qxc8+ Qf8 46. Qg4+ Kh8 47. Qh4+ Bh7 48. Ne2 $15 )44. Qd7+ Kg8 (44... Qg7 45. Qh3+ Kg8 46. Qe6+ Qf7 47. Qxc8+ Qf8 48. Qg4+ Kh8 49. Qh4+ Bh7 50. Ne2 $17 )45. Qxc8+ Qf8 46. Qg4+ Kh8 47. Qh4+ Bh7 48. Ne2 $17 )43. Qxc8+ {[%emt 0:0:20]} Qf8 {[%emt 0:0:16]} 44. Qc6 {[%emt 0:6:54]} (44. Qg4+ $17 Kh8 45. Qh4+ Bh7 46. Ne2 )Kh8 $2 {[%emt 0:12:30]} (44... d4 $19 {And now ...Qf4 would win.} 45. e6 Bg6 )45. e6 $1 $15 {[%emt 0:5:5]} Bg6 {[%emt 0:5:40]} 46. Qc7 $1 {[%emt 0:4:26]} d4 {[%emt 0:12:8]} 47. e7 {[%emt 0:1:8]} Qf7 {[%emt 0:3:11]} (47... Qe8 $5 48. f3 $8 d3 $11 )48. f4 {[%emt 0:3:36]} Qd5+ {[%emt 0:1:26]} (48... Qxb3 $2 49. Qe5+ Kh7 50. Ne4 $18 (50. e8=B Bxe8 51. Qxe8 Qd5+ 52. Kf2 c1=Q $11 )(50. e8=B Bxe8 51. Qxe8 Qd5+ 52. Kf2 c1=Q $11 ))(48... d3 $5 49. Qe5+ $8 Kh7 $11 (49... Kg8 $2 50. Nf5 $18 ))49. Kh2 $2 {[%emt 0:2:41][%mdl 8192] [#]} (49. Kf2 $11 )Qg8 $2 {[%emt 0:0:32]} (49... Qxb3 50. Qe5+ Kh7 51. Nh5 Qg8 52. Nf6+ Kg7 53. Nxg8+ Kxg8 54. Qg5 (54. e8=R+ Bxe8 55. Qxe8+ Kg7 56. Qe5+ Kg6 57. Qe4+ Kf7 58. Qxc2 Ke6 59. Qe4+ Kd7 ))(49... d3 $1 $19 {[%cal Og6e8] Hoping for ...Be8!} 50. Qb8+ Qg8 51. Qe5+ (51. Qxb4 $2 c1=Q $19 )Kh7 )50. f5 {[%emt 0:12:43]} (50. Nh5 $5 c1=Q $8 (50... Bxh5 51. Qe5+ Kh7 52. Qxh5+ Kg7 53. Qg5+ Kh7 54. Qxg8+ Kxg8 55. e8=Q+ Kg7 56. Qe7+ Kh8 57. Qf8+ Kh7 58. Qf5+ Kh8 59. Qxc2 )(50... Qe6 51. e8=Q+ Bxe8 52. Qg7# )51. Qe5+ Kh7 52. Nf6+ Kg7 53. Ne8+ (53. Nxg8+ Kxg8 54. e8=Q+ Bxe8 $11 )(53. e8=N+ Qxe8 54. Nxe8+ Kf8 $11 )Kh7 (53... Kh6 54. Qg5+ Kh7 55. Qh4+ )54. Nf6+ Kg7 55. Ne8+ (55. Nxg8+ Kxg8 56. e8=Q+ Bxe8 $11 )(55. e8=N+ Qxe8 56. Nxe8+ Kf8 $11 )Kh7 (55... Kh6 56. Qg5+ Kh7 57. Qh4+ )56. Nf6+ $11 )Be8 {[%emt 0:0:4]} 51. Qxc2 {[%emt 0:6:24]} Qh7+ {[%emt 0:0:3]} 52. Kg1 {[%emt 0:1:24]} Qxe7 {[%emt 0:0:4]} 53. Qe4 {[%emt 0:2:59]} 1/2-1/2

[Event "57th Biel Festival MTO 2024"]
[White "Gloeckler,Christian"]
[Black "Petkidis,Anthony"]
[Site "Biel"]
[Round "5.21"]
[Annotator "TA"]
[Result "0-1"]
[Date "2024.07.19"]
[WhiteElo "2304"]
[BlackElo "2427"]
[PlyCount "88"]
[TimeControl "60"]

{[%evp 16,87,18,23,11,30,27,10,14,-2,41,18,43,-12,0,-16,-13,-28,27,0,19,6,14,0,0,0,0,0,0,0,0,-98,-101,-104,-108,-95,-99,-93,-100,-204,-180,-174,-116,-134,-96,-147,-154,-158,-161,-162,-164,-173,-154,-179,-115,-194,-190,-185,-118,-180,-96,-209,-137,-240,-233,-263,-250,-277,-131,-288,-222,-290,-283,-283]} 1. e4 {[%emt 0:1:1]} e5 {[%emt 0:0:7]} 2. Nf3 {[%emt 0:0:10]} Nc6 {[%emt 0:0:7]} 3. Bb5 {[%emt 0:0:15]} a6 {[%emt 0:0:9]} 4. Ba4 {[%emt 0:0:10]} Nf6 {[%emt 0:0:7]} 5. O-O {[%emt 0:0:13]} Be7 {[%emt 0:0:19]} 6. Re1 {[%emt 0:0:13]} b5 {[%emt 0:0:8]} 7. Bb3 {[%emt 0:0:8]} O-O {[%emt 0:0:12]} 8. h3 {[%emt 0:0:17]} Bb7 {[%emt 0:0:7]} 9. d3 {[%emt 0:1:25]} d5 {[%emt 0:0:29]} 10. exd5 {[%emt 0:0:20]} Nxd5 {[%emt 0:0:7]} 11. Nbd2 {[%emt 0:0:17][%cal Oa2a4]} Qd7 {[%emt 0:1:14] The position is equal.} 12. a4 {[%emt 0:4:14]} Nf4 {[%emt 0:0:32]} 13. Ne4 {[%emt 0:2:43]} Ng6 {[%emt 0:0:16]} 14. c3 {[%emt 0:7:10]} (14. Bg5 $14 )Na5 $11 {[%emt 0:6:29] Strongly threatening ...Nxb3.} 15. Ba2 {[%emt 0:7:57]} Bd5 {[%emt 0:0:58]} 16. b4 {[%emt 0:6:14] Threatens to win with Bxd5.} Nb7 {[%emt 0:0:56]} (16... Nc6 $142 )17. Ng3 {[%emt 0:3:56]} (17. h4 {keeps more tension.} Bxa2 18. h5 Bd5 19. hxg6 fxg6 20. axb5 axb5 21. Nxe5 Qe6 22. Rxa8 Rxa8 23. Ng4 )Rad8 {[%emt 0:30:2]} 18. axb5 {[%emt 0:9:26]} axb5 {[%emt 0:1:24]} 19. Nxe5 {[%emt 0:11:39]} Nxe5 {[%emt 0:0:34]} 20. Rxe5 {[%emt 0:0:5]} Bxa2 {[%emt 0:0:43]} 21. Rxa2 {[%emt 0:0:2]} Bf6 $1 {[%emt 0:0:59]} 22. Re3 {[%emt 0:2:55]} Bxc3 {[%emt 0:1:10]} 23. Ra7 {[%emt 0:3:52]} (23. Bb2 $11 {keeps the balance.} Bxb2 (23... Bxb4 $2 24. Nh5 $18 )24. Rxb2 )Bd4 $17 {[%emt 0:11:39]} 24. Rxb7 {[%emt 0:0:57]} Qc6 $1 {[%emt 0:0:7]} 25. Nf5 {[%emt 0:7:35]} Qxb7 {[%emt 0:1:1]} 26. Qg4 {[%emt 0:3:25]} Qa7 {[%emt 0:8:15]} (26... Bxe3 27. Qxg7# )27. Kh2 {[%emt 0:12:43]} Qa1 $19 {[%emt 0:8:37][%cal Od4e3]} 28. Re4 {[%emt 0:4:30]} Bf6 {[%emt 0:11:39]} ({Resist} 28... Bxf2 29. Qg5 Rd7 (29... Rxd3 30. Re2 $11 )30. Rf4 $17 )(28... Be5+ $1 $19 29. Bf4 Bxf4+ 30. Rxf4 g6 (30... Rxd3 31. Nh6+ Kh8 32. Nxf7+ Rxf7 33. Qc8+ ))29. Be3 {[%emt 0:2:54]} g6 {[%emt 0:3:30][%cal Oh7h5] ...h5! is the strong threat.} (29... Rxd3 $2 {too greedy.} 30. Nh6+ Kh8 31. Nxf7+ Kg8 32. Bc5 $18 )30. Nh6+ {[%emt 0:1:52]} (30. Bc5 $142 )Kg7 $17 {[%emt 0:0:56]} 31. Qf4 {[%emt 0:4:42] Inhibits Be5.} Rxd3 {[%emt 0:10:9]} 32. Ng4 {[%emt 0:5:11] [#]} h5 $1 {[%emt 0:3:7]} 33. Nxf6 {[%emt 0:3:45]} Qxf6 {[%emt 0:0:3]} 34. Qxc7 {[%emt 0:0:39] [#]} Rd5 {[%emt 0:3:40]} ({Better is} 34... Rfd8 $1 $19 35. Bf4 Kh7 )35. Rf4 {[%emt 0:0:31]} (35. Bc5 $17 {was called for.} )Qd8 $19 {[%emt 0:1:52]} 36. Qc6 {[%emt 0:1:15]} Kg8 {[%emt 0:1:39]} (36... Re8 $19 37. Bc5 Re1 )37. Rf6 {[%emt 0:0:55]} (37. Bc5 $17 Re8 38. Qxb5 )Qd7 {[%emt 0:0:41]} (37... Re8 $19 38. Bc5 Qd7 39. Qxd7 Rxd7 )38. Qc2 {[%emt 0:1:49]} (38. Qxd7 $17 Rxd7 39. Rb6 )Rf5 {[%emt 0:0:57]} 39. Rc6 {[%emt 0:0:36]} (39. Qc6 $17 Qxc6 40. Rxc6 )Rd8 {[%emt 0:1:0]} 40. Qc3 {[%emt 0:1:56]} Kh7 {[%emt 0:2:40] Repels Bh6} 41. Qc1 {[%emt 0:12:39]} Qd1 {[%emt 0:3:17]} (41... Qe8 $19 {has better winning chances. aiming for ...Qe5+.} 42. Ra6 Rd3 )42. Qa3 $2 {[%emt 0:0:23]} (42. Qxd1 $17 Rxd1 43. h4 )Qe1 {[%emt 0:5:31] And now ...Rd1 would win.} 43. Qb2 {[%emt 0:2:8]} h4 {[%emt 0:6:2] ( -> ...Rd1)} 44. Rc1 {[%emt 0:5:40]} Rd1 {[%emt 0:0:8] Weighted Error Value: White=0.33/Black=0.28 (precise) .  Mistake:       	White=9     	Black=6      Inaccurate:     	White=2     	Black=2      OK:         	White=11    	Black=13     Best:        	White=2     	Black=4      Strong:       	---       	Black=3} 0-1